[Event "Open Nuevo Centro. Jornada 1"]
[Site "Chess.com"]
[Date "2020.06.19"]
[Round "6"]
[White "Gimenez Sanchis, Jose Antonio"]
[Black "Romero Barkouk, Rayan "]
[Result "0-1"]
[WhiteElo "1420"]
[BlackElo "1147"]
[TimeControl "180+2"]
[EndTime "11:38:10 PDT"]
[Termination "Victoria de rayan66 por abandono"]

1. c4 {[%clk 0:03:01.9]} 1... e5 {[%clk 0:03:00.7]} 2. Nc3 {[%clk 0:03:01.9]}
2... Nc6 {[%clk 0:03:01.3]} 3. g3 {[%clk 0:03:03.2]} 3... Nf6 {[%clk 0:03:01.7]}
4. Bg2 {[%clk 0:03:04.7]} 4... Bb4 {[%clk 0:03:02]} 5. Qc2 {[%clk 0:03:01.7]}
5... Nd4 {[%clk 0:02:59.6]} 6. Qd3 {[%clk 0:02:55.3]} 6... d6 {[%clk 0:02:57.8]}
7. a3 {[%clk 0:02:55.9]} 7... Bxc3 {[%clk 0:02:57.9]} 8. Qxc3 {[%clk 0:02:54.2]}
8... Bf5 {[%clk 0:02:56.2]} 9. Nf3 {[%clk 0:02:48.9]} 9... Nc2+ {[%clk
0:02:53.9]} 10. Kf1 {[%clk 0:02:43.5]} 10... Nxa1 {[%clk 0:02:54.1]} 11. d3
{[%clk 0:02:41.3]} 11... O-O {[%clk 0:02:51.3]} 12. Bg5 {[%clk 0:02:41.8]} 12...
h6 {[%clk 0:02:51.3]} 13. Bd2 {[%clk 0:02:39]} 13... Bg4 {[%clk 0:02:51]} 14. h3
{[%clk 0:02:36.9]} 14... Bxf3 {[%clk 0:02:50.9]} 15. Bxf3 {[%clk 0:02:38]} 15...
Qe7 {[%clk 0:02:51.7]} 16. Kg2 {[%clk 0:02:38.7]} 16... e4 {[%clk 0:02:52.4]}
17. dxe4 {[%clk 0:02:38.7]} 17... Nxe4 {[%clk 0:02:53.1]} 18. Qd3 {[%clk
0:02:29.9]} 18... Nxd2 {[%clk 0:02:50.2]} 19. Qxd2 {[%clk 0:02:30.3]} 19... Nb3
{[%clk 0:02:49.6]} 20. Qc3 {[%clk 0:02:16.1]} 20... Nc5 {[%clk 0:02:48.9]} 21.
b4 {[%clk 0:02:14.8]} 21... Ne4 {[%clk 0:02:48.8]} 22. Qd3 {[%clk 0:02:06.5]}
22... f5 {[%clk 0:02:40]} 23. Rc1 {[%clk 0:02:02.7]} 23... Rad8 {[%clk
0:02:36.1]} 24. e3 {[%clk 0:01:57.2]} 24... c6 {[%clk 0:02:25.9]} 25. Qb3 {[%clk
0:01:51.6]} 25... Nd2 {[%clk 0:02:22.1]} 26. Qa2 {[%clk 0:01:39.6]} 26... Nxf3
{[%clk 0:02:18.9]} 27. Kxf3 {[%clk 0:01:40.3]} 27... Qe4+ {[%clk 0:02:17.9]} 28.
Ke2 {[%clk 0:01:38.8]} 28... d5 {[%clk 0:02:18.3]} 29. cxd5 {[%clk 0:01:37]}
29... Rxd5 {[%clk 0:02:18.2]} 30. f3 {[%clk 0:01:27]} 30... Qd3+ {[%clk
0:02:17]} 31. Kf2 {[%clk 0:01:24.9]} 31... Qd2+ {[%clk 0:02:14.7]} 32. Qxd2
{[%clk 0:01:25]} 32... Rxd2+ {[%clk 0:02:15.2]} 33. Ke1 {[%clk 0:01:26.1]} 33...
Rd3 {[%clk 0:02:15.1]} 34. Ke2 {[%clk 0:01:26.3]} 34... Rxa3 {[%clk 0:02:15.4]}
35. f4 {[%clk 0:01:24.9]} 35... Re8 {[%clk 0:02:15]} 36. g4 {[%clk 0:01:22.4]}
36... Raxe3+ {[%clk 0:02:08.3]} 37. Kf2 {[%clk 0:01:22.4]} 37... Rxh3 {[%clk
0:02:04]} 38. gxf5 {[%clk 0:01:22.3]} 38... Rf8 {[%clk 0:02:03.1]} 39. Rd1
{[%clk 0:01:21.9]} 39... Rxf5 {[%clk 0:02:02.7]} 40. Kg2 {[%clk 0:01:20.4]}
40... Rh4 {[%clk 0:02:01.6]} 41. Rd7 {[%clk 0:01:17.9]} 41... Rg4+ {[%clk
0:02:00.3]} 42. Kf3 {[%clk 0:01:14.3]} 42... Rgxf4+ {[%clk 0:02:00.2]} 43. Ke3
{[%clk 0:01:15.2]} 43... Rxb4 {[%clk 0:01:59.7]} 44. Rd8+ {[%clk 0:01:14.9]}
44... Rf8 {[%clk 0:01:57.4]} 0

[Event "Open Nuevo Centro. Jornada 1"]
[Site "Chess.com"]
[Date "2020.06.19"]
[Round "6"]
[White "Roca Cruz, Rafael"]
[Black "Aguado, Pablo Luis"]
[Result "1-0"]
[WhiteElo "1674"]
[BlackElo "1423"]
[TimeControl "180+2"]
[EndTime "11:38:40 PDT"]
[Termination "Victoria de RafaRocaCruz por abandono"]

1. d4 {[%clk 0:03:01.6]} 1... d5 {[%clk 0:02:56.9]} 2. c4 {[%clk 0:03:02.4]}
2... e6 {[%clk 0:02:57.1]} 3. Nc3 {[%clk 0:03:03]} 3... Nf6 {[%clk 0:02:57.7]}
4. Bg5 {[%clk 0:03:03.9]} 4... Be7 {[%clk 0:02:57.3]} 5. cxd5 {[%clk 0:03:05]}
5... exd5 {[%clk 0:02:59.2]} 6. e3 {[%clk 0:03:05.8]} 6... c6 {[%clk 0:02:57]}
7. Bd3 {[%clk 0:03:05.9]} 7... O-O {[%clk 0:02:57]} 8. Qc2 {[%clk 0:03:05.9]}
8... Nbd7 {[%clk 0:02:54.3]} 9. Nge2 {[%clk 0:03:06.5]} 9... Re8 {[%clk
0:02:47]} 10. f3 {[%clk 0:03:06.6]} 10... h6 {[%clk 0:02:41.3]} 11. Bh4 {[%clk
0:03:06.1]} 11... c5 {[%clk 0:02:28.6]} 12. O-O {[%clk 0:02:50.8]} 12... b6
{[%clk 0:02:23.4]} 13. Rad1 {[%clk 0:02:35]} 13... Bb7 {[%clk 0:02:15.4]} 14.
Bf2 {[%clk 0:02:23.9]} 14... Rc8 {[%clk 0:02:09.2]} 15. Bf5 {[%clk 0:02:19]}
15... Bd6 {[%clk 0:01:50.7]} 16. Nb5 {[%clk 0:02:03.5]} 16... Bb8 {[%clk
0:01:43.9]} 17. Qd2 {[%clk 0:01:56.8]} 17... c4 {[%clk 0:01:21.2]} 18. Bg3
{[%clk 0:01:52.3]} 18... a6 {[%clk 0:01:18.2]} 19. Nd6 {[%clk 0:01:43.9]} 19...
Bxd6 {[%clk 0:01:18.1]} 20. Bxd6 {[%clk 0:01:44.8]} 20... Rc6 {[%clk 0:01:16]}
21. Bg3 {[%clk 0:01:20.5]} 21... b5 {[%clk 0:01:16.7]} 22. a3 {[%clk 0:01:15.2]}
22... Nb6 {[%clk 0:01:15.7]} 23. Nc3 {[%clk 0:01:12.3]} 23... Qe7 {[%clk
0:01:13.2]} 24. Rde1 {[%clk 0:01:02]} 24... Bc8 {[%clk 0:01:13.5]} 25. Bb1
{[%clk 0:01:00.6]} 25... Re6 {[%clk 0:01:01.2]} 26. Be5 {[%clk 0:00:47.8]} 26...
Nfd7 {[%clk 0:00:58.1]} 27. Qc2 {[%clk 0:00:47.5]} 27... Nxe5 {[%clk 0:00:57.7]}
28. Qh7+ {[%clk 0:00:47.6]} 1

[Event "Open Nuevo Centro. Jornada 1"]
[Site "Chess.com"]
[Date "2020.06.19"]
[Round "6"]
[White "Cin� Asensio, Luca "]
[Black "M�s Ripoll, Vicente"]
[Result "0-1"]
[WhiteElo "481"]
[BlackElo "1151"]
[TimeControl "180+2"]
[EndTime "11:38:45 PDT"]
[Termination "Victoria de menut por jaque mate"]

1. e4 {[%clk 0:03:01.9]} 1... c5 {[%clk 0:03:00.3]} 2. Bc4 {[%clk 0:03:00.7]}
2... e6 {[%clk 0:02:58.1]} 3. Nf3 {[%clk 0:02:58.9]} 3... Nc6 {[%clk 0:02:58.2]}
4. O-O {[%clk 0:02:55.6]} 4... a6 {[%clk 0:02:58.3]} 5. d3 {[%clk 0:02:50.9]}
5... b5 {[%clk 0:02:53.3]} 6. Bg5 {[%clk 0:02:49.4]} 6... Be7 {[%clk 0:02:50.7]}
7. Bxe7 {[%clk 0:02:48.5]} 7... Ngxe7 {[%clk 0:02:46.7]} 8. Bb3 {[%clk 0:02:48]}
8... O-O {[%clk 0:02:42.5]} 9. a4 {[%clk 0:02:34.5]} 9... bxa4 {[%clk
0:02:34.1]} 10. Bxa4 {[%clk 0:02:33.2]} 10... Qc7 {[%clk 0:02:17.1]} 11. Bxc6
{[%clk 0:02:30.2]} 11... Nxc6 {[%clk 0:02:11.6]} 12. g3 {[%clk 0:02:27.8]} 12...
Ne5 {[%clk 0:02:11.1]} 13. Nxe5 {[%clk 0:02:27.2]} 13... Qxe5 {[%clk 0:02:11.5]}
14. Nc3 {[%clk 0:02:27.6]} 14... Bb7 {[%clk 0:02:03.9]} 15. f4 {[%clk
0:02:25.6]} 15... Qd4+ {[%clk 0:01:53.4]} 16. Rf2 {[%clk 0:02:21]} 16... f5
{[%clk 0:01:40.2]} 17. exf5 {[%clk 0:02:19.9]} 17... Rxf5 {[%clk 0:01:29.5]} 18.
Ra4 {[%clk 0:02:17.6]} 18... Qf6 {[%clk 0:01:13.8]} 19. Ne4 {[%clk 0:02:14.4]}
19... Bxe4 {[%clk 0:01:12.7]} 20. dxe4 {[%clk 0:02:14.6]} 20... Rh5 {[%clk
0:01:02]} 21. Qxh5 {[%clk 0:02:11.6]} 21... Qxb2 {[%clk 0:00:52.3]} 22. e5
{[%clk 0:02:04.8]} 22... Qc1+ {[%clk 0:00:42.8]} 23. Rf1 {[%clk 0:02:04.4]}
23... Qxc2 {[%clk 0:00:43.2]} 24. Raa1 {[%clk 0:01:56.6]} 24... Rb8 {[%clk
0:00:38.6]} 25. Rac1 {[%clk 0:01:44.4]} 25... Qe4 {[%clk 0:00:33.8]} 26. Rce1
{[%clk 0:01:41.1]} 26... Qd4+ {[%clk 0:00:32.3]} 27. Rf2 {[%clk 0:01:41.5]}
27... Kf8 {[%clk 0:00:27.2]} 28. f5 {[%clk 0:01:36.5]} 28... exf5 {[%clk
0:00:22.2]} 29. Qxf5+ {[%clk 0:01:36.2]} 29... Kg8 {[%clk 0:00:22.8]} 30. e6
{[%clk 0:01:32.9]} 30... Rf8 {[%clk 0:00:23]} 31. Qg4 {[%clk 0:01:28.1]} 31...
Qxf2+ {[%clk 0:00:21.1]} 32. Kh1 {[%clk 0:01:28.3]} 32... Qxe1+ {[%clk
0:00:20.8]} 33. Kg2 {[%clk 0:01:28.9]} 33... Qf1# {[%clk 0:00:18.2]} 0

[Event "Open Nuevo Centro. Jornada 1"]
[Site "Chess.com"]
[Date "2020.06.19"]
[Round "6"]
[White "Sanchez Saez, Francisco"]
[Black "Clement G�mez, Jos� Antonio"]
[Result "1/2-1/2"]
[WhiteElo "2295"]
[BlackElo "2490"]
[TimeControl "180+2"]
[EndTime "11:39:03 PDT"]
[Termination "Partida en tablas por mutuo acuerdo"]

1. g3 {[%clk 0:03:00.6]} 1... Nf6 {[%clk 0:02:59.3]} 2. Bg2 {[%clk 0:03:01.9]}
2... c5 {[%clk 0:03:01.2]} 3. b3 {[%clk 0:03:01.5]} 3... e6 {[%clk 0:03:01.7]}
4. Bb2 {[%clk 0:03:02.8]} 4... Be7 {[%clk 0:03:03.6]} 5. Nf3 {[%clk 0:03:01.9]}
5... O-O {[%clk 0:03:05.5]} 6. O-O {[%clk 0:03:03.2]} 6... d5 {[%clk 0:03:07]}
7. c4 {[%clk 0:03:01.4]} 7... Nc6 {[%clk 0:03:08.9]} 8. e3 {[%clk 0:02:56.9]}
8... b6 {[%clk 0:03:08.2]} 9. Nc3 {[%clk 0:02:57.8]} 9... Bb7 {[%clk 0:03:01]}
10. cxd5 {[%clk 0:02:57.8]} 10... exd5 {[%clk 0:02:58.2]} 11. d4 {[%clk
0:02:58.5]} 11... Rc8 {[%clk 0:02:57.3]} 12. Rc1 {[%clk 0:02:53.9]} 12... Re8
{[%clk 0:02:31.9]} 13. Qd2 {[%clk 0:02:43.3]} 13... Ne4 {[%clk 0:02:27.7]} 14.
Nxe4 {[%clk 0:02:42.6]} 14... dxe4 {[%clk 0:02:29.6]} 15. Ne1 {[%clk 0:02:31.9]}
15... cxd4 {[%clk 0:02:28.6]} 16. exd4 {[%clk 0:02:27.5]} 16... Bf6 {[%clk
0:02:26.8]} 17. Nc2 {[%clk 0:02:27.6]} 17... Ba6 {[%clk 0:02:16.1]} 18. Rfd1
{[%clk 0:02:26.3]} 18... Bd3 {[%clk 0:02:17.3]} 19. Nb4 {[%clk 0:02:05.8]} 19...
Nxd4 {[%clk 0:02:12.2]} 20. Rxc8 {[%clk 0:01:57.3]} 20... Qxc8 {[%clk
0:02:14.1]} 21. Nxd3 {[%clk 0:01:46.2]} 21... exd3 {[%clk 0:02:05.5]} 22. Bxd4
{[%clk 0:01:41.5]} 22... Bxd4 {[%clk 0:02:07.4]} 23. Qxd3 {[%clk 0:01:43.3]}
23... Bc5 {[%clk 0:01:54.9]} 24. Bd5 {[%clk 0:01:38.7]} 24... Qg4 {[%clk
0:01:41.1]} 25. Kg2 {[%clk 0:01:22.1]} 25... Re2 {[%clk 0:01:23]} 26. Rd2 {[%clk
0:01:13]} 26... Rxd2 {[%clk 0:01:18.8]} 27. Qxd2 {[%clk 0:01:14.9]} 27... g6
{[%clk 0:01:16.2]} 28. Qd3 {[%clk 0:01:09]} 28... Qd4 {[%clk 0:01:11.7]} 29. Qf3
{[%clk 0:01:07.1]} 29... Qg7 {[%clk 0:01:05.8]} 30. h4 {[%clk 0:01:07.9]} 30...
h5 {[%clk 0:01:05.1]} 31. Qe4 {[%clk 0:01:08.4]} 31... Qf6 {[%clk 0:01:03.1]}
32. f4 {[%clk 0:00:59.7]} 32... Kg7 {[%clk 0:01:02.6]} 33. Qe2 {[%clk
0:00:51.7]} 33... a5 {[%clk 0:01:02.9]} 34. Bc4 {[%clk 0:00:46.2]} 34... Qa1
{[%clk 0:00:52.9]} 1/2-1

[Event "Open Nuevo Centro. Jornada 1"]
[Site "Chess.com"]
[Date "2020.06.19"]
[Round "6"]
[White "Valverde Alcaide, Miguel Alejandro"]
[Black "Mart�nez Cuenca, Adri�n "]
[Result "1-0"]
[WhiteElo "916"]
[BlackElo "603"]
[TimeControl "180+2"]
[EndTime "11:39:10 PDT"]
[Termination "Victoria de mentafurterei por jaque mate"]

1. e4 {[%clk 0:03:01.9]} 1... e5 {[%clk 0:02:58.8]} 2. Nf3 {[%clk 0:03:01.3]}
2... Nc6 {[%clk 0:02:53.4]} 3. Bc4 {[%clk 0:02:57]} 3... d5 {[%clk 0:02:52.2]}
4. Bxd5 {[%clk 0:02:53.9]} 4... Bb4 {[%clk 0:02:38.8]} 5. Ng5 {[%clk 0:02:49.4]}
5... h6 {[%clk 0:02:16.9]} 6. Nxf7 {[%clk 0:02:46.9]} 6... Qh4 {[%clk
0:01:56.3]} 7. Nxh8 {[%clk 0:02:23.1]} 7... Bc5 {[%clk 0:01:55.2]} 8. Rf1 {[%clk
0:02:10.1]} 8... Bxf2+ {[%clk 0:01:48.1]} 9. Rxf2 {[%clk 0:02:09.3]} 9... Bg4
{[%clk 0:01:40.3]} 10. g3 {[%clk 0:01:54.9]} 10... Bxd1 {[%clk 0:01:31.6]} 11.
gxh4 {[%clk 0:01:53.1]} 11... Nd4 {[%clk 0:01:21.2]} 12. Kxd1 {[%clk 0:01:48.3]}
12... O-O-O {[%clk 0:01:07.5]} 13. Nc3 {[%clk 0:01:35.7]} 13... g5 {[%clk
0:00:58.7]} 14. hxg5 {[%clk 0:01:30.1]} 14... hxg5 {[%clk 0:01:00.6]} 15. Nb5
{[%clk 0:01:21.1]} 15... a6 {[%clk 0:01:00.2]} 16. Na7+ {[%clk 0:01:13.8]} 16...
Kb8 {[%clk 0:00:57.2]} 17. c3 {[%clk 0:01:11.6]} 17... Kxa7 {[%clk 0:00:59.1]}
18. cxd4 {[%clk 0:01:10.9]} 18... a5 {[%clk 0:00:59.1]} 19. dxe5 {[%clk
0:01:06.2]} 19... a4 {[%clk 0:01:01]} 20. e6 {[%clk 0:01:03]} 20... a3 {[%clk
0:00:59]} 21. bxa3 {[%clk 0:00:59.1]} 21... c6 {[%clk 0:00:57.4]} 22. Rb1 {[%clk
0:00:59.8]} 22... Rxd5 {[%clk 0:00:56]} 23. exd5 {[%clk 0:01:00.5]} 23... cxd5
{[%clk 0:00:57.9]} 24. e7 {[%clk 0:01:01.1]} 24... Nxe7 {[%clk 0:00:58.2]} 25.
Rf7 {[%clk 0:00:58.3]} 25... Nf5 {[%clk 0:00:50.6]} 26. Rxf5 {[%clk 0:00:58.7]}
26... b5 {[%clk 0:00:49.6]} 27. Rxd5 {[%clk 0:00:59.6]} 27... Kb6 {[%clk
0:00:48.6]} 28. Rxg5 {[%clk 0:00:59.9]} 28... Ka5 {[%clk 0:00:48.4]} 29. Nf7
{[%clk 0:01:00.4]} 29... Kb6 {[%clk 0:00:46.7]} 30. h3 {[%clk 0:01:01.6]} 30...
Kc6 {[%clk 0:00:45.7]} 31. h4 {[%clk 0:01:02.5]} 31... b4 {[%clk 0:00:45]} 32.
h5 {[%clk 0:01:00]} 32... bxa3 {[%clk 0:00:41]} 33. h6 {[%clk 0:01:00.5]} 33...
Kd7 {[%clk 0:00:38.9]} 34. h7 {[%clk 0:01:00]} 34... Ke7 {[%clk 0:00:39.5]} 35.
h8=Q {[%clk 0:00:59.4]} 35... Kxf7 {[%clk 0:00:39.5]} 36. Qg7+ {[%clk
0:00:57.7]} 36... Ke6 {[%clk 0:00:39.2]} 37. Rb6# {[%clk 0:00:56.7]} 1

[Event "Open Nuevo Centro. Jornada 1"]
[Site "Chess.com"]
[Date "2020.06.19"]
[Round "6"]
[White "Sanchis Bon, Sergi"]
[Black "Camison Zornoza, Cesar"]
[Result "0-1"]
[WhiteElo "1006"]
[BlackElo "1398"]
[TimeControl "180+2"]
[EndTime "11:39:15 PDT"]
[Termination "Victoria de cczchess2019 por jaque mate"]

1. e4 {[%clk 0:03:01.9]} 1... Nf6 {[%clk 0:03:00.1]} 2. Qf3 {[%clk 0:03:01.3]}
2... e5 {[%clk 0:03:00.2]} 3. g4 {[%clk 0:03:00.5]} 3... h6 {[%clk 0:02:52.5]}
4. h4 {[%clk 0:02:57.3]} 4... Nc6 {[%clk 0:02:51.9]} 5. c3 {[%clk 0:02:53.9]}
5... d5 {[%clk 0:02:48.8]} 6. exd5 {[%clk 0:02:47.6]} 6... Bxg4 {[%clk
0:02:45.9]} 7. Qe3 {[%clk 0:02:36.2]} 7... Nxd5 {[%clk 0:02:42]} 8. Qe4 {[%clk
0:02:33.4]} 8... f5 {[%clk 0:02:37.8]} 9. Qg2 {[%clk 0:02:22.3]} 9... Nf4 {[%clk
0:02:19.8]} 10. Qg3 {[%clk 0:02:09.1]} 10... Bd6 {[%clk 0:02:14.5]} 11. f3
{[%clk 0:02:03.2]} 11... e4 {[%clk 0:01:49.3]} 12. fxg4 {[%clk 0:02:01]} 12...
Nd3+ {[%clk 0:01:49.9]} 13. Qxd3 {[%clk 0:01:46.2]} 13... exd3 {[%clk
0:01:50.5]} 14. Bxd3 {[%clk 0:01:41.2]} 14... Bg3+ {[%clk 0:01:46.3]} 15. Kd1
{[%clk 0:01:36.2]} 15... Qxd3 {[%clk 0:01:45]} 16. Ne2 {[%clk 0:01:25.8]} 16...
O-O-O {[%clk 0:01:40.5]} 17. Nxg3 {[%clk 0:01:21]} 17... Qxg3 {[%clk 0:01:40.7]}
18. Na3 {[%clk 0:01:14.6]} 18... Rhe8 {[%clk 0:01:40.3]} 19. b4 {[%clk
0:01:08.6]} 19... Qf3+ {[%clk 0:01:40.5]} 20. Kc2 {[%clk 0:00:53.5]} 20... Qxh1
{[%clk 0:01:40.4]} 21. b5 {[%clk 0:00:53.1]} 21... Qe4+ {[%clk 0:01:39.1]} 22.
Kb2 {[%clk 0:00:44.7]} 22... Ne5 {[%clk 0:01:37.3]} 23. gxf5 {[%clk 0:00:37.8]}
23... Nd3+ {[%clk 0:01:37]} 24. Kb3 {[%clk 0:00:34.8]} 24... Nxc1+ {[%clk
0:01:34.1]} 25. Rxc1 {[%clk 0:00:33.9]} 25... Rxd2 {[%clk 0:01:34.4]} 26. Nc4
{[%clk 0:00:32.1]} 26... Qd5 {[%clk 0:01:26.2]} 27. Kb4 {[%clk 0:00:26.5]} 27...
a5+ {[%clk 0:01:17]} 28. Kb3 {[%clk 0:00:23.6]} 28... a4+ {[%clk 0:01:13.6]} 29.
Kb4 {[%clk 0:00:22.3]} 29... Rxa2 {[%clk 0:01:11.4]} 30. Rb1 {[%clk 0:00:17.3]}
30... Re4 {[%clk 0:01:10.5]} 31. Ka5 {[%clk 0:00:12.8]} 31... Rxc4 {[%clk
0:01:02.8]} 32. Rg1 {[%clk 0:00:06.1]} 32... b6+ {[%clk 0:01:03.4]} 33. Ka6
{[%clk 0:00:03.6]} 33... Qa8# {[%clk 0:01:03.8]} 0

[Event "Open Nuevo Centro. Jornada 1"]
[Site "Chess.com"]
[Date "2020.06.19"]
[Round "6"]
[White "Yatseta Fernandez, Marc Kazymyr"]
[Black "Perrot, Fabien "]
[Result "1-0"]
[WhiteElo "1399"]
[BlackElo "980"]
[TimeControl "180+2"]
[EndTime "11:39:20 PDT"]
[Termination "Victoria de K_73 por tiempo"]

1. d4 {[%clk 0:03:01.9]} 1... d5 {[%clk 0:03:00.4]} 2. c4 {[%clk 0:03:02.8]}
2... c6 {[%clk 0:02:59.1]} 3. g3 {[%clk 0:03:02.7]} 3... Nf6 {[%clk 0:02:56.8]}
4. Bg2 {[%clk 0:03:04]} 4... Bf5 {[%clk 0:02:54.3]} 5. Nf3 {[%clk 0:03:04.8]}
5... e6 {[%clk 0:02:55.3]} 6. Be3 {[%clk 0:03:03.8]} 6... Be7 {[%clk 0:02:52.9]}
7. Nbd2 {[%clk 0:03:03.5]} 7... O-O {[%clk 0:02:53.9]} 8. O-O {[%clk 0:03:04.1]}
8... Qb6 {[%clk 0:02:41.8]} 9. Nh4 {[%clk 0:02:36.9]} 9... Bg4 {[%clk
0:02:05.2]} 10. h3 {[%clk 0:02:28.4]} 10... Bh5 {[%clk 0:02:00.9]} 11. c5 {[%clk
0:02:23.2]} 11... Qc7 {[%clk 0:01:47.4]} 12. Bf4 {[%clk 0:02:11.2]} 12... Qa5
{[%clk 0:01:32]} 13. Nb3 {[%clk 0:01:57.3]} 13... Qd8 {[%clk 0:01:21.9]} 14. Nf3
{[%clk 0:01:48.6]} 14... Bg6 {[%clk 0:01:03.2]} 15. Ne5 {[%clk 0:01:42.2]} 15...
Nh5 {[%clk 0:00:47.5]} 16. Nxg6 {[%clk 0:01:21.7]} 16... hxg6 {[%clk 0:00:41.9]}
17. Be3 {[%clk 0:01:12.5]} 17... Bg5 {[%clk 0:00:30.3]} 18. Rc1 {[%clk
0:01:07.3]} 18... Bxe3 {[%clk 0:00:28.4]} 19. fxe3 {[%clk 0:01:08.3]} 19... Nxg3
{[%clk 0:00:20.5]} 20. Rf3 {[%clk 0:01:02.5]} 20... Ne4 {[%clk 0:00:17.2]} 21.
Qf1 {[%clk 0:00:56.5]} 21... Nd7 {[%clk 0:00:08.4]} 22. a3 {[%clk 0:00:29.6]}
22... Qg5 {[%clk 0:00:07.3]} 23. Rd1 {[%clk 0:00:20.8]} 23... Qxe3+ {[%clk
0:00:05.4]} 24. Rxe3 {[%clk 0:00:20.8]} 1

[Event "Open Nuevo Centro. Jornada 1"]
[Site "Chess.com"]
[Date "2020.06.19"]
[Round "6"]
[White "Blanco Solaz, Ram�n"]
[Black "Luque Saiz, Andres"]
[Result "0-1"]
[WhiteElo "1973"]
[BlackElo "1851"]
[TimeControl "180+2"]
[EndTime "11:39:25 PDT"]
[Termination "Victoria de Chuch1n por abandono"]

1. g3 {[%clk 0:03:01.9]} 1... d5 {[%clk 0:03:00.3]} 2. c4 {[%clk 0:03:02.9]}
2... c6 {[%clk 0:03:01.2]} 3. Bg2 {[%clk 0:03:03.2]} 3... Nf6 {[%clk 0:03:01.8]}
4. Nf3 {[%clk 0:03:03.9]} 4... dxc4 {[%clk 0:03:00.7]} 5. O-O {[%clk 0:03:04.9]}
5... g6 {[%clk 0:02:59.1]} 6. a4 {[%clk 0:03:05.7]} 6... Bg7 {[%clk 0:03:00]} 7.
Na3 {[%clk 0:03:06.9]} 7... O-O {[%clk 0:02:43.2]} 8. Nxc4 {[%clk 0:03:07.9]}
8... Nbd7 {[%clk 0:02:43.8]} 9. d4 {[%clk 0:03:08.8]} 9... Nb6 {[%clk
0:02:44.1]} 10. b3 {[%clk 0:03:06.3]} 10... Be6 {[%clk 0:02:38.4]} 11. Qc2
{[%clk 0:02:59.8]} 11... Nfd5 {[%clk 0:02:35.9]} 12. Ba3 {[%clk 0:02:56.5]}
12... Re8 {[%clk 0:02:31.6]} 13. e4 {[%clk 0:02:56.3]} 13... Nf6 {[%clk
0:02:26.1]} 14. Rad1 {[%clk 0:02:56.8]} 14... Qc7 {[%clk 0:02:25.6]} 15. a5
{[%clk 0:02:56]} 15... Nxc4 {[%clk 0:02:25.1]} 16. bxc4 {[%clk 0:02:57.4]} 16...
Qxa5 {[%clk 0:02:20.9]} 17. Bb2 {[%clk 0:02:55.7]} 17... Qc7 {[%clk 0:02:09.1]}
18. e5 {[%clk 0:02:43.5]} 18... Nd7 {[%clk 0:01:58.6]} 19. Ng5 {[%clk 0:02:44]}
19... Bf5 {[%clk 0:01:58.1]} 20. Qb3 {[%clk 0:02:45.5]} 20... h6 {[%clk
0:01:53.5]} 21. Ne4 {[%clk 0:02:42.8]} 21... Rab8 {[%clk 0:01:17.9]} 22. f4
{[%clk 0:02:29.8]} 22... Bxe4 {[%clk 0:01:14]} 23. Bxe4 {[%clk 0:02:30]} 23...
e6 {[%clk 0:01:14.9]} 24. Ra1 {[%clk 0:02:23.5]} 24... a6 {[%clk 0:01:14.6]} 25.
Rfc1 {[%clk 0:02:24.4]} 25... Bf8 {[%clk 0:01:08.7]} 26. Qc2 {[%clk 0:02:25.3]}
26... Kh7 {[%clk 0:01:04.7]} 27. h4 {[%clk 0:02:25.6]} 27... h5 {[%clk
0:01:05.3]} 28. Qe2 {[%clk 0:02:25.7]} 28... Kh6 {[%clk 0:01:05.7]} 29. Rc3
{[%clk 0:02:24.7]} 29... Be7 {[%clk 0:01:04.7]} 30. Bc1 {[%clk 0:02:25.6]} 30...
Kg7 {[%clk 0:01:02.7]} 31. g4 {[%clk 0:02:22.3]} 31... hxg4 {[%clk 0:00:55.1]}
32. Qxg4 {[%clk 0:02:22.9]} 32... Rh8 {[%clk 0:00:56.5]} 33. Rh3 {[%clk
0:02:18.7]} 33... Rh5 {[%clk 0:00:51.4]} 34. Be3 {[%clk 0:01:25.7]} 34... Rbh8
{[%clk 0:00:50.7]} 35. Bf2 {[%clk 0:01:27.2]} 35... Nb6 {[%clk 0:00:40.2]} 36.
Rc1 {[%clk 0:01:21.3]} 36... Qd8 {[%clk 0:00:39.2]} 37. d5 {[%clk 0:01:22.7]}
37... cxd5 {[%clk 0:00:38.7]} 38. Bxb6 {[%clk 0:01:08.4]} 38... Qxb6+ {[%clk
0:00:38.8]} 39. Kh1 {[%clk 0:01:05]} 39... dxe4 {[%clk 0:00:38]} 0

[Event "Open Nuevo Centro. Jornada 1"]
[Site "Chess.com"]
[Date "2020.06.19"]
[Round "6"]
[White "Chernikov, Vladimir"]
[Black "Campos Gambuti, Luis Mar�a"]
[Result "0-1"]
[WhiteElo "2240"]
[BlackElo "2336"]
[TimeControl "180+2"]
[EndTime "11:39:27 PDT"]
[Termination "Victoria de Tangalangafacv por abandono"]

1. b3 {[%clk 0:03:01.9]} 1... d5 {[%clk 0:02:59.9]} 2. Bb2 {[%clk 0:03:03.8]}
2... Bg4 {[%clk 0:03:00.7]} 3. h3 {[%clk 0:03:02.4]} 3... Bh5 {[%clk 0:03:00.9]}
4. d3 {[%clk 0:03:02.7]} 4... Nd7 {[%clk 0:03:00.4]} 5. Nd2 {[%clk 0:03:03.5]}
5... e5 {[%clk 0:02:58.9]} 6. Ngf3 {[%clk 0:03:03.8]} 6... Bd6 {[%clk
0:02:57.5]} 7. g4 {[%clk 0:03:04]} 7... Bg6 {[%clk 0:02:57.7]} 8. Bg2 {[%clk
0:03:05.2]} 8... Qe7 {[%clk 0:02:55]} 9. e4 {[%clk 0:03:01.9]} 9... dxe4 {[%clk
0:02:52.6]} 10. Nxe4 {[%clk 0:02:57.1]} 10... Bxe4 {[%clk 0:02:25.3]} 11. dxe4
{[%clk 0:02:55.5]} 11... Ba3 {[%clk 0:02:24.7]} 12. Bxa3 {[%clk 0:02:24.6]}
12... Qxa3 {[%clk 0:02:24.2]} 13. O-O {[%clk 0:02:26.5]} 13... Ne7 {[%clk
0:02:23.6]} 14. Nh4 {[%clk 0:02:14.4]} 14... Rd8 {[%clk 0:02:17.2]} 15. Qe2
{[%clk 0:02:02]} 15... Qc5 {[%clk 0:02:13.6]} 16. Rad1 {[%clk 0:01:58]} 16...
O-O {[%clk 0:02:03.3]} 17. Nf5 {[%clk 0:01:52.6]} 17... Ng6 {[%clk 0:01:59.9]}
18. c4 {[%clk 0:01:21.9]} 18... c6 {[%clk 0:01:34.4]} 19. Qe3 {[%clk 0:01:16.1]}
19... Qxe3 {[%clk 0:01:32.1]} 20. fxe3 {[%clk 0:01:11.9]} 20... Nc5 {[%clk
0:01:20.1]} 21. h4 {[%clk 0:00:51.6]} 21... Rfe8 {[%clk 0:01:12.2]} 22. h5
{[%clk 0:00:49.6]} 22... Nf8 {[%clk 0:01:11.7]} 23. h6 {[%clk 0:00:20.6]} 23...
Rxd1 {[%clk 0:00:56.5]} 24. Rxd1 {[%clk 0:00:20.2]} 24... g6 {[%clk 0:00:57.3]}
25. Nd6 {[%clk 0:00:13.8]} 25... Rd8 {[%clk 0:00:57.7]} 26. Bf3 {[%clk
0:00:14.9]} 26... a5 {[%clk 0:00:57.4]} 27. Kf2 {[%clk 0:00:14.6]} 27... Nfe6
{[%clk 0:00:58.3]} 28. Ke2 {[%clk 0:00:13.8]} 28... Kf8 {[%clk 0:00:49.8]} 29.
a3 {[%clk 0:00:14]} 29... Ke7 {[%clk 0:00:44.7]} 30. b4 {[%clk 0:00:14.9]} 30...
Rxd6 {[%clk 0:00:45.9]} 31. bxc5 {[%clk 0:00:14.8]} 31... Rxd1 {[%clk
0:00:46.3]} 32. Kxd1 {[%clk 0:00:16.7]} 32... Nxc5 {[%clk 0:00:47.3]} 33. g5
{[%clk 0:00:17.5]} 33... f6 {[%clk 0:00:46.3]} 34. gxf6+ {[%clk 0:00:14.9]}
34... Kxf6 {[%clk 0:00:47.6]} 35. Kc2 {[%clk 0:00:15.4]} 35... Kg5 {[%clk
0:00:48.4]} 0